bitfinex/quotes_SOLUSD_20240705
["timestamp","ask_amount","ask_price","bid_price","bid_amount"]
[1720192621231,25.3668,133.18,133.09,7.5135]
[1720192621430,7.5092,133.17,133.13,7.5113]
[1720192621630,7.5092,133.17,133.05,21.6675]
[1720192621631,7.512,133.12,133.07,7.5144]
[1720192621848,7.5113,133.14,133.05,59.2454]
[1720192622158,42.97214895,133.19,133.08,7.5141]
[1720192622159,7.5116,133.13,133.08,7.5141]
[1720192622327,18.7752,133.16,133.07,7.5148]
[1720192622533,7.5121,133.12,133.07,26.3014]
[1720192622731,18.7738,133.17,133.05,21.6675]
[1720192622941,22.59079545,133.2,133.06,0.17]
[1720192623146,22.59079545,133.2,133.11,18.7811]
[1720192623147,7.5099,133.16,133.11,18.7811]
[1720192623333,7.5099,133.16,133.06,20.17]
[1720192623334,18.7718,133.18,133.08,18.7849]
[1720192623533,18.7718,133.18,133.06,20.0]
[1720192623754,5.26596357,133.21,133.07,7.5147]
[1720192623755,7.5125,133.12,133.07,7.5147]
[1720192623962,41.36329545,133.19,132.99,37.5949]
[1720192624256,41.36329545,133.19,133.01,7.5181]
[1720192624257,7.5156,133.06,133.01,7.5181]
[1720192624456,7.515,133.07,133.02,18.7937]
[1720192624641,18.7823,133.11,133.01,7.5181]
[1720192624834,7.5138,133.09,133.0,6.4664]
[1720192625035,7.6833,133.1,133.05,7.5155]
[1720192625236,7.6833,133.1,133.0,6.4664]
[1720192625237,20.0,133.09,133.06,7.5151]
[1720192625556,7.5109,133.14,133.09,7.5131]
[1720192625856,7.5121,133.12,133.07,7.5143]
[1720192628653,5.42341132,133.16,133.05,37.5777]
[1720192628654,7.5101,133.16,133.05,37.5777]
[1720192628855,18.7677,133.21,133.13,18.7774]
[1720192629059,7.5096,133.17,133.13,18.7774]
[1720192629362,7.5092,133.17,133.12,26.2912]
[1720192629980,7.5098,133.16,133.12,26.2912]
[1720192630463,7.5088,133.18,133.13,7.5113]
[1720192630630,5.22531977,133.23,133.14,18.7769]
[1720192630829,18.7661,133.22,133.14,18.7769]
[1720192631043,7.5089,133.18,133.14,18.7769]
[1720192631242,7.5082,133.19,133.14,26.2875]
[1720192631655,18.7661,133.22,133.14,26.2875]
[1720192631656,18.7661,133.22,133.14,18.7769]
[1720192631838,18.7616,133.26,133.18,7.5085]
[1720192632044,7.5056,133.24,133.2,7.5073]
[1720192632268,7.5048,133.25,133.21,7.5068]
[1720192632493,7.5053,133.24,133.2,26.2756]
[1720192632670,18.857,133.29,133.13,0.17]
[1720192632671,18.7603,133.26,133.17,18.7728]
[1720192632843,18.7632,133.24,133.15,7.5102]
[1720192633046,7.5082,133.19,133.14,26.2871]
[1720192633234,7.5077,133.2,133.15,7.5101]
[1720192633439,18.7627,133.25,133.17,7.5091]
[1720192633670,7.5067,133.22,133.17,7.5091]
[1720192633869,7.5067,133.22,133.11,37.561]
[1720192633870,18.7627,133.25,133.11,160.211]
[1720192634168,18.7583,133.28,133.21,7.5068]
[1720192635152,0.1,133.29,133.18,37.5416]
[1720192635342,0.1,133.29,133.22,26.2717]
[1720192635548,7.5045,133.26,133.22,26.272]
[1720192635763,7.5037,133.27,133.22,26.272]
[1720192636144,0.1,133.29,133.19,18.7688]
[1720192636373,0.1,133.29,133.21,18.767]
[1720192636750,7.5031,133.28,133.23,26.2697]
[1720192637077,7.503,133.28,133.23,26.2697]
[1720192637260,0.1,133.29,133.23,26.2697]
[1720192637458,7.5031,133.28,133.23,26.2697]
[1720192637658,7.5036,133.27,133.23,18.7644]
[1720192637855,7.5051,133.25,133.2,32.6047]
[1720192638064,7.5032,133.28,133.22,18.7657]
[1720192638251,0.1,133.29,133.28,7.503]
[1720192639866,0.1,133.29,133.26,18.7595]
[1720192640571,0.1,133.29,133.28,7.503]
[1720192641450,0.1,133.29,133.27,7.5034]
[1720192642075,7.503,133.28,133.23,26.2692]
[1720192642390,0.1,133.29,133.23,18.7636]
[1720192642674,18.7667,133.22,133.13,16.3573]
[1720192642853,0.17,133.21,133.13,16.3573]
[1720192643185,7.5102,133.16,133.11,7.5124]
[1720192643346,18.7677,133.21,133.12,7.5119]
[1720192643678,20.17,133.2,133.07,35.1435]
[1720192643884,7.5125,133.12,133.07,42.6579]
[1720192644083,7.5125,133.12,133.07,26.3006]
[1720192644560,7.5116,133.13,133.08,7.5141]
[1720192644761,18.7708,133.19,133.1,18.7819]
[1720192644986,7.5109,133.14,133.09,7.5135]
[1720192645287,7.513,133.11,133.06,262.8152]
[1720192645492,7.5145,133.08,133.04,6.5847]
[1720192645655,20.0,133.1,133.01,18.7952]
[1720192645859,20.0,133.1,133.03,18.7916]
[1720192646056,7.5147,133.08,133.03,18.7916]
[1720192646286,7.5144,133.08,133.03,18.7916]
[1720192646581,7.5164,133.05,132.99,25.3707]
[1720192646785,7.5164,133.05,132.99,32.8897]
[1720192647078,0.17,133.09,133.01,7.5181]
[1720192647288,7.5154,133.06,133.01,18.7946]
[1720192647658,7.5162,133.05,133.0,7.5187]
[1720192647970,7.5154,133.06,133.0,7.5187]
[1720192648384,7.5154,133.06,133.01,7.518]
[1720192648880,0.17,133.07,133.03,7.517]
[1720192649264,20.17,133.07,133.03,7.517]
[1720192649459,20.17,133.07,132.99,18.7982]
[1720192649698,7.5183,133.01,132.95,7.521]
[1720192649877,7.5189,133.0,132.94,25.3095]
[1720192650076,7.5183,133.01,132.95,7.5212]
[1720192650276,7.5175,133.03,132.98,7.5199]
[1720192650473,27.5178,133.02,132.97,7.5204]
[1720192650673,7.5178,133.02,132.97,7.5204]
[1720192650890,7.5165,133.05,133.0,7.5186]
[1720192651181,20.0,133.08,133.0,18.7962]
[1720192651384,7.5163,133.05,132.99,7.5189]
[1720192651564,20.0,133.08,132.95,37.6055]
[1720192651763,20.0,133.08,133.01,18.795]
[1720192651978,7.5169,133.04,132.99,7.519]
[1720192652191,7.5154,133.06,133.01,7.5181]
[1720192652390,20.0,133.05,133.01,7.5181]
[1720192652570,27.516,133.05,133.0,26.3148]
[1720192652887,7.5165,133.04,133.0,26.3149]
[1720192653294,7.5171,133.03,132.97,18.8003]
[1720192653588,0.17,133.07,132.96,20.0]
[1720192653589,0.17,133.07,133.0,7.5187]
[1720192653790,20.17,133.07,132.99,18.798]
[1720192653963,7.5166,133.04,132.99,18.798]
[1720192654163,7.5161,133.05,133.01,7.5181]
[1720192654369,7.5161,133.05,133.0,7.5186]
[1720192654591,20.17,133.07,133.01,7.5181]
[1720192654902,7.513,133.12,133.09,7.5136]
[1720192655066,15.0718,133.14,133.0,37.7629]
[1720192655270,15.0718,133.14,133.05,7.5157]
[1720192655494,7.5139,133.09,133.04,26.3067]
[1720192655696,15.0718,133.14,133.02,7.5171]
[1720192655697,7.5149,133.07,133.02,7.5171]
[1720192655997,7.5149,133.07,133.03,7.5169]
[1720192656197,52.6282,133.14,133.01,18.7947]
[1720192656398,7.5172,133.03,132.98,7.5194]
[1720192656692,6.5103,133.08,132.97,18.8002]
[1720192656898,6.5103,133.08,132.97,26.3203]
[1720192656899,7.518,133.02,132.97,26.3203]
[1720192657188,7.5173,133.03,132.99,7.5193]
[1720192657390,7.5171,133.03,132.98,7.5197]
[1720192657691,6.5103,133.08,133.01,7.518]
[1720192657896,20.17,133.07,133.0,7.5186]
[1720192658285,38.9574,133.07,132.99,18.798]
[1720192658588,38.9574,133.07,132.99,26.3167]
[1720192658771,7.5184,133.01,132.97,7.5203]
[1720192658972,7.5188,133.0,132.96,18.8015]
[1720192659294,7.5188,133.0,132.96,26.3225]
[1720192659595,7.5178,133.02,132.97,7.5203]
[1720192659907,7.521,132.97,132.93,18.8059]
[1720192660076,0.17,133.01,132.93,26.3285]
[1720192660077,18.9663,133.01,132.93,26.3285]
[1720192660277,7.5206,132.97,132.93,18.8059]
[1720192660467,7.6899,132.98,132.93,18.8059]
[1720192660697,7.5204,132.97,132.93,26.3285]
[1720192660892,7.6901,132.98,132.93,26.3285]
[1720192661076,34.5784,133.04,132.93,18.8059]
[1720192661390,7.5184,133.01,132.96,7.5208]
[1720192661692,0.17,133.0,132.96,7.5208]
[1720192661896,7.5184,133.01,132.96,7.5208]
[1720192662193,7.5184,133.01,132.92,38.4724326]
[1720192662194,18.7877,133.07,132.97,18.8005]
[1720192662378,18.7877,133.07,132.92,38.4724326]
[1720192662379,6.5103,133.08,132.92,38.4724326]
[1720192662579,6.5103,133.08,132.95,37.6061]
[1720192662985,7.70118685,133.12,132.95,37.6061]
[1720192662986,7.5137,133.09,133.04,7.5161]
[1720192663185,7.5133,133.1,133.05,7.5158]
[1720192663367,18.7807,133.12,133.05,7.5158]
[1720192663567,6.1714,133.13,133.05,18.7896]
[1720192663774,24.9504,133.13,133.05,26.3054]
[1720192664096,24.9504,133.13,133.01,37.5894]
[1720192664097,18.7822,133.11,133.02,18.7935]
[1720192664278,7.5157,133.06,133.02,18.7935]
[1720192664480,18.7845,133.09,132.99,24.8244]
[1720192664684,20.0,133.08,132.99,18.7972]
[1720192664987,7.5171,133.03,132.99,26.3163]
[1720192665198,7.5182,133.02,132.97,7.5201]
[1720192665372,7.5182,133.01,132.97,7.5201]
[1720192665701,7.5188,133.0,132.96,26.3219]
[1720192665909,7.5227,132.93,132.92,0.8576326]
[1720192666208,7.5226,132.94,132.92,0.8576326]
[1720192666391,7.5217,132.95,132.92,0.8576326]
[1720192666781,7.5222,132.94,132.92,0.8576326]
[1720192666979,0.17,132.96,132.92,0.8576326]
[1720192667383,7.522,132.95,132.92,0.8576326]
[1720192667582,7.5223,132.94,132.92,0.8576326]
[1720192668104,0.17,132.93,132.92,0.8576326]
[1720192668707,18.8001,132.98,132.92,0.8576326]
[1720192669001,7.5214,132.96,132.92,0.8576326]
[1720192669179,0.17,132.95,132.92,0.8576326]
[1720192669375,0.17,132.97,132.92,0.8576326]
[1720192669597,20.17,132.97,132.92,0.8576326]
[1720192670393,7.5223,132.94,132.92,0.8576326]
[1720192670702,20.17,132.97,132.92,0.8576326]
[1720192670703,0.17,132.95,132.92,0.8576326]
[1720192670902,7.5216,132.95,132.92,0.8576326]
[1720192671107,0.17,132.97,132.92,0.8576326]
[1720192671108,7.5211,132.96,132.92,0.8576326]
[1720192671289,18.7949,133.02,132.92,19.6651326]
[1720192671489,18.7949,133.02,132.92,27.1884326]
[1720192671801,18.7978,133.0,132.92,0.8576326]
[1720192671992,7.5216,132.95,132.92,0.8576326]
[1720192672195,7.5211,132.96,132.92,0.8576326]
[1720192672400,7.5205,132.97,132.92,8.3808326]
[1720192672694,7.5198,132.99,132.93,18.8065]
[1720192672901,7.52,132.98,132.93,18.8065]
[1720192673222,7.5188,133.0,132.96,7.5209]
[1720192673583,18.7937,133.03,132.92,0.8576326]
[1720192673584,7.5202,132.98,132.93,7.5225]
[1720192674113,7.5202,132.98,132.94,7.5221]
[1720192674322,7.5195,132.99,132.94,7.5221]
[1720192674681,20.0,132.98,132.92,0.8576326]
[1720192674886,7.5225,132.94,132.92,0.8576326]
[1720192675193,7.5227,132.93,132.92,0.8576326]
[1720192677210,7.6927,132.93,132.92,0.8576326]
[1720192679386,57.6014,132.98,132.92,0.8576326]
[1720192679590,7.5216,132.95,132.92,0.8576326]
[1720192679792,38.8009,132.98,132.92,0.8576326]
[1720192679793,7.5225,132.94,132.92,0.8576326]
[1720192680010,7.5217,132.95,132.92,0.8576326]
[1720192680188,38.8009,132.98,132.92,0.8576326]
[1720192680189,25.36400903,132.98,132.92,0.8576326]
[1720192680385,7.5222,132.94,132.92,0.8576326]
[1720192680697,7.5227,132.93,132.92,0.8576326]
[1720192681437,7.5227,132.93,132.92,3.26e-05]
[1720192681626,7.5227,132.93,132.91,3.26e-05]
[1720192681627,7.5233,132.92,132.91,3.26e-05]
[1720192681791,7.5233,132.92,132.81,388.3295]
[1720192681792,7.5279,132.84,132.81,380.8]
[1720192681991,7.5279,132.84,132.81,0.1]
[1720192682913,18.9794,132.92,132.81,0.1]
[1720192683123,7.5253,132.89,132.84,26.3466]
[1720192683417,20.17,132.91,132.81,0.1]
[1720192683418,7.5267,132.86,132.81,18.9226]
[1720192683713,7.5267,132.86,132.82,7.5286]
[1720192683921,7.5262,132.87,132.83,7.5283]
[1720192684217,7.5262,132.87,132.82,7.5288]
[1720192684519,7.5262,132.87,132.83,7.5283]
[1720192684898,7.5267,132.86,132.82,7.5288]
[1720192685296,44.10936258,132.93,132.81,37.7475]
[1720192685516,7.5256,132.88,132.84,7.5278]
[1720192685815,44.10936258,132.93,132.85,7.5272]
[1720192685994,24.10936258,132.93,132.81,37.7475]
[1720192686189,7.5249,132.9,132.86,18.8165]
[1720192686497,7.526,132.88,132.83,18.8197]
[1720192686689,7.5263,132.87,132.83,26.3478]
[1720192687327,0.17,132.88,132.81,0.1]
[1720192687495,7.5274,132.85,132.81,0.1]
[1720192687817,7.5262,132.87,132.82,26.3507]
[1720192688019,18.8093,132.92,132.84,18.8194]
[1720192688234,7.5207,132.97,132.92,7.5228]
[1720192688515,15.7143,133.03,132.95,7.5215]
[1720192688721,15.7143,133.03,132.93,18.8064]
[1720192688937,7.5189,133.0,132.95,26.3249]
[1720192689112,7.5203,132.98,132.93,7.5225]
[1720192689311,18.7958,133.01,132.93,7.5227]
[1720192689515,18.7958,133.01,132.92,25.1976]
[1720192689725,58.45621581,133.07,132.93,20.0]
[1720192690110,18.7882,133.07,132.98,18.7992]
[1720192690313,7.516,133.05,133.0,26.3146]
[1720192690535,7.5163,133.05,133.0,26.3146]
[1720192690735,106.4346,133.12,133.01,7.5182]
[1720192690736,7.5155,133.06,133.01,7.5182]
[1720192690943,30.10864,133.13,133.02,18.7929]
[1720192691115,7.5135,133.1,133.05,7.5158]
[1720192691315,18.7775,133.14,133.04,18.7906]
[1720192691712,5.35163942,133.15,133.01,7.5179]
[1720192691713,7.5156,133.06,133.01,7.5179]
[1720192692213,7.5171,133.03,132.98,7.5197]
[1720192692550,18.7835,133.1,133.0,18.7969]
[1720192692709,100.0,133.09,132.93,15.2364]
[1720192692915,45.14,133.11,132.97,7.5203]
[1720192692916,7.518,133.02,132.97,7.5203]
[1720192693150,18.7849,133.09,132.93,15.2364]
[1720192693452,7.5188,133.0,132.95,26.3249]
[1720192693939,7.5206,132.97,132.92,32.7214]
[1720192694119,0.17,132.98,132.92,6.3904]
[1720192694321,0.17,132.98,132.89,18.8119]
[1720192694539,45.17,132.99,132.89,18.8119]
[1720192694837,7.5233,132.92,132.87,7.526]
[1720192695217,7.6928,132.93,132.88,7.525]
[1720192695424,7.5233,132.92,132.87,7.526]
[1720192695917,7.5234,132.92,132.87,7.5261]
[1720192696116,0.17,132.93,132.88,18.8131]
[1720192696343,0.17,132.93,132.86,6.123]
[1720192696344,20.0,132.98,132.86,43.7554]
[1720192696546,7.5212,132.96,132.91,7.5238]
[1720192696747,18.7975,133.0,132.9,18.8097]
[1720192697038,18.7932,133.03,132.94,7.522]
[1720192697337,7.5194,132.99,132.95,7.5215]
[1720192697514,18.796,133.01,132.92,26.3297]
[1720192697723,7.5223,132.94,132.89,18.8125]
[1720192697940,7.5223,132.94,132.89,26.3373]
[1720192698137,37.5907,133.02,132.9,7.5241]
[1720192698433,3.84315266,133.05,132.86,58.7554]
[1720192698741,18.7893,133.06,132.98,7.5199]
[1720192699034,7.516,133.05,133.0,7.5185]
[1720192699237,7.5155,133.06,133.01,7.518]
[1720192699427,18.7851,133.09,132.99,26.3165]
[1720192699825,37.5713,133.09,132.93,37.6116]
[1720192700053,18.7861,133.08,132.97,18.8006]
[1720192700233,18.7861,133.08,133.01,7.5179]
[1720192700234,7.5158,133.06,133.01,7.5179]
[1720192700440,18.7861,133.08,133.0,18.7969]
[1720192700740,7.5171,133.03,132.93,37.6116]
[1720192700923,5.44387339,133.12,132.95,18.8031]
[1720192700924,7.5184,133.01,132.95,18.8031]
[1720192701236,7.5161,133.05,133.0,7.5185]
[1720192701420,7.5167,133.04,133.0,7.5185]
[1720192701735,43.00447339,133.12,133.01,18.795]
[1720192701736,18.7838,133.1,133.01,18.795]
[1720192701918,25.3292,133.13,132.97,16.5508]
[1720192702114,7.5148,133.07,133.03,18.7919]
[1720192702340,7.5154,133.06,133.02,7.5174]
[1720192702510,7.5164,133.05,133.01,7.5181]
[1720192702713,7.5155,133.06,133.01,7.518]
[1720192702917,7.5162,133.05,133.0,26.3146]
[1720192703110,7.5162,133.05,133.0,18.796]
[1720192703328,7.5162,133.05,133.0,26.3143]
[1720192703531,18.7849,133.09,133.0,18.796]
[1720192703728,7.5155,133.06,133.02,7.5175]
[1720192703928,18.7849,133.09,133.0,18.796]
[1720192704130,7.5149,133.07,133.02,7.5176]
[1720192704521,0.17,133.08,133.01,7.518]
[1720192704921,18.7877,133.07,132.97,35.3511]
[1720192705124,0.17,133.08,132.97,16.5508]
[1720192705125,7.5155,133.06,132.97,16.5508]
[1720192705316,0.17,133.08,132.97,16.5508]
[1720192705317,18.9562,133.08,133.0,7.5184]
[1720192705541,18.9562,133.08,132.99,7.5192]
[1720192705716,18.7889,133.06,132.98,18.7986]
[1720192705930,7.5177,133.02,132.97,16.5508]
[1720192706138,7.5177,133.02,132.98,7.5195]
[1720192706325,7.5184,133.01,132.93,37.6116]
[1720192706524,0.17,133.03,132.92,15.4545]
[1720192706525,18.7943,133.02,132.92,15.4545]
[1720192706738,7.5195,132.99,132.95,7.5214]
[1720192706919,7.5194,132.99,132.94,7.5216]
[1720192707121,0.17,133.01,132.92,15.4545]
[1720192707122,0.17,133.01,132.92,34.2621]
[1720192707556,7.5205,132.97,132.93,7.5224]
[1720192707935,7.5205,132.97,132.92,41.7853]
[1720192708141,7.5197,132.99,132.94,18.8053]
[1720192708534,7.5199,132.98,132.94,26.3272]
[1720192708723,7.5205,132.97,132.92,15.4545]
[1720192708947,18.7925,133.04,132.92,15.4545]
[1720192709149,5.3864451,133.07,132.99,7.5193]
[1720192709323,100.0,133.1,132.94,37.6094]
[1720192709527,6.5503,133.13,132.94,37.6094]
[1720192709528,7.5173,133.03,132.95,20.0]
[1720192709732,7.5173,133.03,132.98,7.5197]
[1720192709925,7.5178,133.02,132.98,26.3188]
[1720192710245,7.5178,133.02,132.98,7.5198]
[1720192710453,18.7849,133.09,132.97,37.6003]
[1720192710619,7.5147,133.08,133.03,26.309]
[1720192710823,7.5144,133.08,133.04,7.5165]
[1720192711023,7.5153,133.07,133.03,18.7922]
[1720192711224,7.515,133.07,133.03,18.7922]
[1720192711443,7.515,133.07,133.03,26.309]
[1720192711649,7.5155,133.06,133.03,18.7922]
[1720192712439,7.5155,133.06,133.01,7.518]
[1720192713053,18.786,133.08,133.0,26.3142]
[1720192713348,20.17,133.07,132.93,37.6123]
[1720192713534,7.5161,133.05,132.99,18.7983]
[1720192713726,0.17,133.07,132.99,18.7983]
[1720192713727,7.5165,133.04,132.99,18.7983]
[1720192714048,0.17,133.07,132.93,37.6123]
[1720192714049,7.5177,133.02,132.93,37.6123]
[1720192714231,7.517,133.04,132.93,37.6123]
[1720192714765,7.5161,133.05,132.99,18.7981]
[1720192714925,7.5172,133.03,132.99,26.3173]
[1720192715126,7.5172,133.03,132.99,18.7981]
[1720192715452,18.7902,133.05,132.96,18.8022]
[1720192715949,20.17,133.04,132.96,26.3231]
[1720192716154,7.5189,133.0,132.96,26.3232]
[1720192716332,7.5189,133.0,132.96,18.8022]
[1720192716528,7.5195,132.99,132.95,7.5214]
[1720192716751,7.5188,133.0,132.96,7.521]
[1720192716952,7.5184,133.01,132.96,7.521]
[1720192717150,7.5177,133.02,132.97,7.5203]
[1720192717356,7.5184,133.01,132.97,7.5203]
[1720192717534,7.5178,133.02,132.98,7.5198]
[1720192717729,7.5178,133.02,132.97,26.321]
[1720192717937,20.17,133.04,132.94,18.8045]
[1720192717938,7.5197,132.99,132.94,18.8045]
[1720192718173,7.5192,133.0,132.96,7.5209]
[1720192718357,7.5183,133.01,132.97,7.5202]
[1720192719042,7.5183,133.01,132.96,26.3233]
[1720192719250,7.5187,133.0,132.96,26.3233]
[1720192719441,20.17,133.04,132.97,7.5203]
[1720192720344,20.0,133.04,132.98,18.7995]
[1720192720652,7.5169,133.04,132.99,7.5192]
[1720192721164,7.5169,133.04,133.0,7.5187]
[1720192721458,7.5161,133.05,133.0,7.5187]
[1720192721758,18.7868,133.08,133.01,7.518]
[1720192721929,7.5157,133.06,133.0,18.7964]
[1720192722135,18.7827,133.11,133.02,26.3113]
[1720192722361,18.7827,133.11,133.02,18.7939]
[1720192722655,7.5159,133.06,133.02,18.7939]
[1720192722860,18.7875,133.07,132.99,18.7974]
[1720192723057,7.5178,133.02,132.93,673.6112]
[1720192723232,7.5178,133.02,132.96,18.8019]
[1720192723435,7.5172,133.03,132.98,7.5195]
[1720192723651,18.7875,133.07,132.98,7.5195]
[1720192723652,7.5178,133.02,132.98,7.5195]
[1720192723855,76.3518,133.1,132.96,37.6031]
[1720192724051,18.784,133.1,132.96,60.1831]
[1720192724353,5.43814875,133.13,133.06,18.7883]
[1720192724556,16.1687,133.14,133.06,18.7883]
[1720192724557,7.5132,133.1,133.06,26.3035]
[1720192725061,7.5138,133.09,133.03,18.7919]
[1720192725235,18.781,133.12,133.05,7.5159]
[1720192725735,7.5132,133.1,133.05,7.5159]
[1720192725945,18.781,133.12,133.04,7.5163]
[1720192726140,18.781,133.12,133.03,18.7919]
[1720192726141,7.5139,133.09,133.05,7.5159]
[1720192727057,7.5139,133.09,133.04,7.5163]
[1720192727669,7.5144,133.08,133.04,7.5163]
[1720192727860,7.5153,133.07,133.03,18.7919]
[1720192728067,7.5154,133.06,133.0,18.7957]
[1720192728253,18.7793,133.13,133.0,37.592]
[1720192728449,7.513,133.11,133.06,7.5149]
[1720192728650,7.5131,133.1,133.06,18.7878]
[1720192728967,18.7802,133.12,133.05,7.5156]
[1720192729267,18.777,133.15,133.06,7.5151]
[1720192729572,143.10303839,133.17,133.01,16.142]
[1720192729772,7.515,133.07,133.02,7.5176]
[1720192730107,7.515,133.07,133.03,18.7926]
[1720192730253,18.7816,133.11,133.04,7.5165]
[1720192730449,20.17,133.1,133.03,7.5168]
[1720192730664,7.5152,133.07,133.02,26.3108]
[1720192730841,20.17,133.1,132.99,18.7972]
[1720192730842,18.7849,133.09,132.99,18.7972]
[1720192731040,0.17,133.08,132.98,6.4198]
[1720192731270,7.5157,133.06,133.02,7.5175]
[1720192731666,0.17,133.08,133.01,18.7952]
[1720192731847,7.5159,133.05,133.01,18.7952]
[1720192732047,7.5159,133.05,133.01,26.313]
[1720192732258,7.5156,133.06,133.02,7.5175]
[1720192732465,20.0,133.1,133.05,7.5157]
[1720192732766,20.17,133.11,133.05,7.5157]
[1720192732972,7.5133,133.1,133.05,7.5157]
[1720192733173,7.5133,133.1,133.06,7.5153]
[1720192733385,27.5128,133.11,133.06,7.5153]
[1720192733543,6.5351,133.18,133.1,7.513]
[1720192733745,37.5482,133.17,133.06,18.7873]
[1720192733966,7.5122,133.12,133.08,7.5142]
[1720192734170,7.513,133.11,133.06,18.7873]
[1720192734364,7.5135,133.1,133.06,26.3025]
[1720192734569,7.5138,133.09,133.04,7.516]
[1720192734781,7.5144,133.08,133.04,7.516]
[1720192734984,7.5137,133.09,133.05,7.5158]
[1720192735200,7.5133,133.1,133.06,7.515]
[1720192735500,18.7769,133.15,133.07,7.5147]
[1720192735677,11.96562365,133.18,133.1,7.5127]
[1720192735678,7.5113,133.14,133.1,7.5127]
[1720192735877,7.5101,133.16,133.05,100.0]
[1720192736085,7.5109,133.14,133.11,18.7806]
[1720192736295,7.5116,133.13,133.09,7.5135]
[1720192736469,18.7748,133.16,133.08,18.7845]
[1720192736669,7.5126,133.11,133.08,18.7845]
[1720192736873,7.5118,133.13,133.08,18.7845]
[1720192737069,7.5109,133.14,133.08,18.7845]
[1720192737274,7.5109,133.14,133.1,7.5127]
[1720192737691,7.5104,133.15,133.11,7.5125]
[1720192737894,7.5098,133.16,133.12,7.5119]
[1720192738111,0.1,133.19,133.18,7.5086]
[1720192738604,0.1,133.19,133.16,18.7738]
[1720192738791,0.1,133.19,133.18,7.5086]
[1720192739099,0.1,133.19,133.07,6.4834]
[1720192739303,7.51,133.16,133.07,6.4834]
[1720192739467,7.5087,133.18,133.07,6.4834]
[1720192739668,20.0,133.17,133.07,6.4834]
[1720192739971,7.5095,133.17,133.07,29.0634]
[1720192740174,7.5095,133.17,133.12,7.5116]
[1720192740387,7.5087,133.18,133.12,18.7795]
[1720192740596,7.5092,133.17,133.13,7.5112]
[1720192740890,7.5087,133.18,133.13,7.5112]
[1720192741075,18.8709,133.19,133.09,18.7833]
[1720192741277,7.5107,133.15,133.1,27.5127]
[1720192741481,7.5107,133.15,133.11,7.5125]
[1720192741694,7.5098,133.16,133.12,7.5119]
[1720192741877,7.5097,133.17,133.12,7.5118]
[1720192742084,0.1,133.19,133.11,18.7811]
[1720192742282,7.5095,133.17,133.13,7.5112]
[1720192742889,7.5099,133.16,133.12,7.5118]
[1720192743204,7.5103,133.15,133.11,26.2936]
[1720192743377,7.5098,133.16,133.11,26.2936]
[1720192743573,7.5094,133.17,133.12,7.5119]
[1720192743797,0.17,133.16,133.06,418.2768]
[1720192744104,7.5097,133.16,133.11,7.512]
[1720192744284,0.1,133.19,133.07,29.0634]
[1720192744591,0.1,133.19,133.12,18.7793]
[1720192744896,7.5101,133.16,133.12,18.7793]
[1720192745082,0.1,133.19,133.1,7.5129]
[1720192745083,18.7724,133.18,133.1,7.5129]
[1720192745281,20.0,133.17,133.12,7.5116]
[1720192745481,20.0,133.17,133.07,6.4834]
[1720192745695,0.1,133.19,133.06,7.5152]
[1720192745696,7.5134,133.1,133.06,7.5152]
[1720192745891,7.5147,133.08,133.03,24.0123]